Cogmind - Beta 10.2 *** ADVENTURER MODE // 2021.08.06 @ 16:09:47 Player: darlorth Result: Destroyed by Y-45 Defender with Heavy Assault Rifle Performance ------------- Evolutions (1) 500 Regions Visited (2) 400 Robots Destroyed (10) 50 Value Destroyed (246) 246 Prototype IDs (0) 0 Alien Tech Used (0) 0 Bonus (0) 0 TOTAL SCORE: 1196 Bonus ------- None Cogmind --------- Core Integrity 0/400 Matter 300/300 Energy 99/100 System Corruption 0% Temperature Cool (9) Movement Core (50) Location -9/Materials Parts ------- > --- POWER (1) -------- (None) > --- PROPULSION (2) --- (None) > --- UTILITY (4) ------ Signal Interpreter > --- WEAPON (2) ------- (None) > --- INVENTORY (4) ---- Compact Wheel Compact Wheel Small Storage Unit Grenade Launcher Peak State ------------ > --- POWER ------------ Light Ion Engine > --- PROPULSION ------- Compact Wheel Compact Wheel > --- UTILITY ---------- Small Storage Unit Tractor Beam > --- WEAPON ----------- EM Pulse Gun Light Assault Rifle > --- INVENTORY -------- Light Ion Engine Compact Wheel Small Storage Unit Signal Interpreter Small Laser [Rating: 7] Favorites ----------- Power Light Ion Engine Engine Light Ion Engine Propulsion Compact Wheel Wheel Compact Wheel Utility Small Storage Unit Device Tractor Beam Storage Small Storage Unit Processor Signal Interpreter Protection Light Armor Plating Weapon EM Pulse Gun Energy Gun EM Pulse Gun Ballistic Gun Light Assault Rifle Impact Weapon Hammer Build | -11 -10 -9 ------- Run | Scr Mat Mat Slots Evolved 2 | . . 2 Power . | . . . Propulsion . | . . . Utility 2 | . . 2 Weapon . | . . . Parts Attached 13 | 6 3 4 Power 2 | 1 . 1 Engine 2 | 1 . 1 Core . | . . . Reactor . | . . . Propulsion 2 | 2 . . Treads . | . . . Leg . | . . . Wheel 2 | 2 . . Hover . | . . . Flight . | . . . Utility 4 | 1 2 1 Device 1 | . 1 . Storage 1 | 1 . . Processor 1 | . 1 . Hackware . | . . . Protection 1 | . . 1 Artifact . | . . . Weapon 5 | 2 1 2 Energy Gun 3 | 2 . 1 Energy Cannon . | . . . Ballistic Gun 1 | . 1 . Ballistic Cannon . | . . . Launcher . | . . . Special Weapon . | . . . Impact Weapon 1 | . . 1 Slashing Weapon . | . . . Piercing Weapon . | . . . Special Melee Weapon . | . . . Unidentified Prototypes . | . . . Parts Lost 12 | . 2 10 Power 2 | . . 2 Propulsion 2 | . . 2 Utility 3 | . 1 2 Weapon 5 | . 1 4 Highest Loss Streak 8 | . 1 8 Average Slot Usage (%) 72 | . 87 48 Engine 11 | . 14 6 Wheel 20 | . 28 8 Storage 12 | . 14 9 Processor 5 | . 2 11 Energy Gun 11 | . 16 4 Ballistic Gun 8 | . 10 6 Naked Turns . | . . . Heaviest Build 12 | 11 11 12 Greatest Support 32 | 32 32 32 Greatest Overweight (x) 3 | . . 3 Average Overweight (x) . | . . . Largest Inventory Capacity 6 | 6 6 6 Average Capacity 5 | 5 6 5 Most Carried 6 | 5 6 6 Average Carried 5 | 2 5 4 Final Capacity 6 | 6 6 4 Final Carried 6 | 5 6 4 Class Distribution -------------------- 100% | Mutant Dominant Class ---------------- Mutant | -10/Materials Mutant | -9/Materials Resources | -11 -10 -9 ----------- Run | Scr Mat Mat Matter Collected 307 | 260 23 24 Remotely 21 | . 21 . Salvage Created 375 | 89 56 230 Parts 29 | 3 8 18 Haulers Intercepted . | . . . Recyclers Shooed . | . . . Parts Field Recycled . | . . . Retrieved Matter . | . . . Parts Self-Destructed . | . . . Prevented . | . . . Kills | -11 -10 -9 ------- Run | Scr Mat Mat Combat Hostiles Destroyed 8 | . 3 5 Melee 1 | . . 1 Guns 7 | . 3 4 Classes Destroyed 6 | 1 2 3 Recycler 1 | 1 . . Watcher 1 | . 1 . Swarmer 3 | . 3 . Grunt 2 | . . 2 Brawler 1 | . . 1 Sentry 2 | . . 2 Best Kill Streak 4 | 1 3 4 Combat Bots Only 4 | . 3 4 Max Kills in Single Turn 1 | 1 1 1 Gunslinging . | . . . Exploded . | . . . Melee 1 | . . 1 Uniques/NPCs Destroyed . | . . . Combat | -11 -10 -9 -------- Run | Scr Mat Mat Damage Taken 1088 | . 129 959 Core 432 | . 21 411 Absorbed by Shields . | . . . Core Remaining (%) 95 | 100 91 . Volleys Fired 27 | 2 11 14 Largest 2 | 2 2 2 Hottest 90 | 90 90 60 Shots Fired 51 | 4 19 28 Gun 51 | 4 19 28 Cannon . | . . . Launcher . | . . . Special . | . . . Kinetic 17 | . 3 14 Thermal 20 | 2 5 13 Explosive . | . . . Electromagnetic 14 | 2 11 1 Robot Hit Streak 15 | 3 6 15 Robot Miss Streak 1 | 1 1 1 Penetration Max . | . . . Secondary Targets 1 | . . 1 Max Gunslinging Chain 1 | . . 1 Shots Hit Robots 49 | 3 12 34 Core Hits 20 | 2 6 12 Critical Hits . | . . . Critical Kills . | . . . Critical Parts Destroyed . | . . . Melee Attacks 10 | . . 10 Impact 10 | . . 10 Slashing . | . . . Piercing . | . . . Sneak Attacks . | . . . Combat Hostiles . | . . . Follow-up Attacks . | . . . Damage Inflicted 544 | 65 143 336 Guns 390 | 24 143 223 Cannons . | . . . Explosions 41 | 41 . . Melee 113 | . . 113 Ramming . | . . . Kinetic 99 | . . 99 Thermal 238 | 53 61 124 Explosive . | . . . Electromagnetic 94 | 12 82 . Impact 113 | . . 113 Slashing . | . . . Piercing . | . . . Highest Corruption . | . . . Average Corruption . | . . . Corruption Purged . | . . . Overload Shots . | . . . Overflow Damage . | . . . Projectiles . | . . . Explosions . | . . . Melee . | . . . Knockbacks . | . . . Impact . | . . . Kinetic . | . . . Secondary . | . . . Self-Inflicted Damage . | . . . Shots . | . . . Rammed . | . . . Targets Rammed . | . . . Kicked . | . . . Crushed . | . . . Highest Temperature 90 | 60 90 54 Average Temperature 32 | 33 40 25 Received Heat Transfer 513 | . 78 435 Siege Activations . | . . . Robots Corrupted . | . . . Combat Hostiles . | . . . Parts Fried . | . . . Impact Corruptions . | . . . Robots Melted . | . . . Combat Hostiles . | . . . Parts Melted 1 | . 1 . Heat Transferred 497 | 37 185 275 Parts Sabotaged . | . . . Parts Stolen . | . . . Parts Stripped . | . . . Power Chain Reactions 1 | 1 . . Missiles Intercepted . | . . . Alert | -11 -10 -9 ------- Run | Scr Mat Mat Peak Influence 164 | 5 153 164 Initial 54 | . 2 54 Average 91 | 2 113 98 Maximum Alert Level . | . . . Low Security (%) 100 | 100 100 100 Level 1 . | . . . Level 2 . | . . . Level 3 . | . . . Level 4 . | . . . Level 5 . | . . . High Security . | . . . Max Security . | . . . Squads Dispatched . | . . . Investigation . | . . . Extermination . | . . . Reinforcement . | . . . Assault . | . . . Garrison . | . . . Intercept . | . . . Construction Impeded . | . . . Haulers Reinforced . | . . . Stealth | -11 -10 -9 --------- Run | Scr Mat Mat Distress Signals . | . . . Communications Jammed . | . . . Distress Signals . | . . . Times Spotted 16 | . 8 8 Peak Tracking Total 7 | . 2 7 Tactical Retreats 4 | . 4 . Traps | -11 -10 -9 ------- Run | Scr Mat Mat Traps Triggered . | . . . Indirectly . | . . . Trap Hack Attempts . | . . . Triggered . | . . . Disarmed . | . . . Reprogrammed . | . . . Reused . | . . . Traps Extracted . | . . . Installed . | . . . Triggered . | . . . Machines | -11 -10 -9 ---------- Run | Scr Mat Mat Machines Disabled . | . . . Max in Single Turn . | . . . Machines Sabotaged . | . . . Garrisons Compromised . | . . . Overloaded Fab Kills . | . . . Fab Network Shutdowns . | . . . Hacking | -11 -10 -9 --------- Run | Scr Mat Mat Machines Accessed 1 | . 1 . Terminals 1 | . 1 . Fabricators . | . . . Repair Stations . | . . . Recycling Units . | . . . Scanalyzers . | . . . Garrison Access . | . . . Total Hacks 3 | . 3 . Successful 2 | . 2 . Failed 1 | . 1 . Catastrophic . | . . . Database Lockouts . | . . . Manual 2 | . 2 . Terminals 3 | . 3 . Fabricators . | . . . Repair Stations . | . . . Recycling Units . | . . . Scanalyzers . | . . . Garrison Access . | . . . Terminal Hacks 1 | . 1 . Terminal Index 1 | . 1 . Fabricator Hacks . | . . . Repair Station Hacks . | . . . Recycling Unit Hacks . | . . . Scanalyzer . | . . . Garrison Access Hacks . | . . . Unauthorized Hacks 1 | . 1 . Terminals 1 | . 1 . Botnet 1 | . 1 . Fabricators . | . . . Repair Stations . | . . . Recycling Units . | . . . Scanalyzers . | . . . Garrison Access . | . . . Data Cores Recovered . | . . . Used . | . . . Hacking Detections 1 | . 1 . Full Trace Events . | . . . Feedback Events . | . . . Feedback Blocked . | . . . Robot Schematics Acquired . | . . . Robots Built . | . . . Matter . | . . . Time . | . . . Total Robot Build Rating . | . . . Part Schematics Acquired . | . . . Parts Built . | . . . Matter . | . . . Time . | . . . Total Part Build Rating . | . . . Parts Repaired . | . . . Time . | . . . Parts Recycled . | . . . Recycled Matter . | . . . Retrieved Matter . | . . . Retrieved Components . | . . . Parts Scanalyzed . | . . . Part Schematics Acquired . | . . . Parts Damaged . | . . . Bothacking | -11 -10 -9 ------------ Run | Scr Mat Mat Used RIF Installer . | . . . Robots Hacked . | . . . Non-combat . | . . . Combat . | . . . Robot Hacks Applied . | . . . Relay Couplers Released . | . . . Robots Rewired . | . . . Allies Hacked . | . . . Hacks Repelled . | . . . Allies | -11 -10 -9 -------- Run | Scr Mat Mat Total Allies . | . . . Largest Group . | . . . Highest-Rated Group . | . . . Highest-Rated Ally . | . . . Total Orders . | . . . Ally Attacks . | . . . Total Damage . | . . . Kills . | . . . Allies Corrupted . | . . . Allies Melted . | . . . Intel | -11 -10 -9 ------- Run | Scr Mat Mat Robot Analysis Total . | . . . Derelict Logs Recovered . | . . . Drone Launches . | . . . Drone Recoveries . | . . . Exploration | -11 -10 -9 ------------- Run | Scr Mat Mat Turns Passed 529 | 79 275 175 Spaces Moved 406 | 64 223 119 Core 75 | 13 . 62 Treads . | . . . Legs . | . . . Wheels 331 | 51 223 57 Hover . | . . . Flight . | . . . Fastest Speed 50 | 50 100 50 Average Speed 94 | 89 100 85 Slowest Speed 200 | 100 100 200 Overloaded Moves . | . . . Propulsion Burnouts . | . . . Robots Hopped . | . . . Cave-ins Triggered . | . . . Exploration Rate (%) 24 | 5 54 15 Regions Visited 2 Branch Regions . Pre-discovered Areas . | . . . Known Exits Taken 1 | . 1 . Unknown Exits Taken 1 | 1 . . Scrap Searched . | . . . Spaces Dug . | . . . Terrain Destroyed . | . . . Melee . | . . . Projectile . | . . . AOE . | . . . Terrain Rammed . | . . . Walls Destroyed . | . . . Machines Disabled . | . . . Actions | -11 -10 -9 --------- Run | Scr Mat Mat Total 488 | 81 256 151 Wait 20 | . 17 3 Move 404 | 63 222 119 Hop . | . . . Pick Up 14 | 10 3 1 Fast Attach 3 | 1 1 1 Attach 10 | 5 2 3 Detach . | . . . Swap . | . . . Drop . | . . . Fire 27 | 2 11 14 Melee 10 | . . 10 Ram . | . . . Kick . | . . . Crush . | . . . Escape Stasis . | . . . Rewire . | . . . Trap . | . . . Miscellaneous . | . . . Route ------- -11/Scrapyard -10/Materials (discovered 2 exits: *Mat / *Min) -9/Materials History --------- Turn | Location | Event 20 | -11/Scrapyard | Discovered new exit (range 16) 80 | -11/Scrapyard | Entered Materials 304 | -10/Materials | Discovered new exit (range 3) 308 | -10/Materials | Identified exit to Mines 328 | -10/Materials | Build established: Mutant 349 | -10/Materials | Discovered new exit (range 6) 353 | -10/Materials | Identified exit to Materials 355 | -10/Materials | Entered another Materials area 355 | -9/Materials | Evolved 2 slots: Utility x2 476 | -9/Materials | Core integrity fell below 50% 488 | -9/Materials | Core integrity fell below 20% 530 | -9/Materials | Destroyed by Y-45 Defender with Heavy Assault Rifle Last Messages --------------- 00419_ G-34 Mercenary destroyed. 00439_ Y-45 Defender destroyed. 00441_ Knocked back. 00452_ B-36 Bruiser destroyed. 00452_ Switching to secondary target: Y-45 Defender. 00454_ Sml. Laser destroyed. 00456_ Acquired Hammer. 00456_ Com. Wheel destroyed. 00457_ Acquired 14 matter. 00459_ Lgt. Assault Rifle destroyed. 00460_ Acquired Lgt. Armor Plating. 00461_ Lgt. Ion Engine destroyed. 00465_ Lgt. Armor Plating destroyed. 00469_ Lgt. Ion Engine destroyed. 00488_ Y-45 Defender destroyed. 00489_ Hammer destroyed. 00492_ Acquired 10 matter. 00507_ K-01 Serf collects debris. 00510_ Sml. Storage Unit destroyed. 00516_ K-01 Serf collects debris. Map ----- +----------------------------------------------------+ | ?????????????????????????????????????????????????? | | ?????????????????????????????????????????????????? | | ?????????????????????????????????????????????????? | | ?????????????????????????????????????????????????? | | ?????????????????????????????????????????????????? | | ?????????????????????????????????????????????????? | | ?????????????????????????????????????????????????? | | ?????????????????????????????????????????????????? | | ?????????????????????????????????????????????????? | | ?????????????????????????????????????????????????? | | ?????????????????????????????????????????????????? | | ?????????????????????????????????????????????????? | | ?????????????????????????????????????????????????? | | ?????????????????????????????????????????????????? | | ?????????????????????????????????????????????????? | | ?????????????????????????????????????????????????? | | ?????????????????????????????????????????????????? | | ?????????????????????????????????????????????????? | | ??????????????????####+###+#?????????????????????? | | ?????????????????? #?????????????????????? | | ?????????????????? """ """ #?????????????????????? | | ?????????????????? """ "Y" #?????????????????????? | | ?????????????????# """k #?????????????????????? | | ?????????????????# """ = #?????????????????????? | | ?????????????????# #?????????????????????? | | ?????????????????# @ #?????????????????????? | | ?????????????????# #?????????????????????? | | ?????????????????######Y##+#?????????????????????? | | ??????????????????????##?# #?????????????????????? | | ?????????????????????????# #?????????????????????? | | ?????????????????????????# #?????????????????????? | | ???????????????????#######+##????????????????????? | | ??????????????##???# #????????????????????? | | ?????????##### #???# """"" #????????????????????? | | ?????????? ##### """"" #????????????????????? | | ?????????? # # """"" #????????????????????? | | ???????????" # + #????????????????????? | | ???????????Y + # "" #????????????????????? | | ???????????? # # T" #????????????????????? | | ???????????? # # "" #????????????????????? | | ?????? #????#+## # #????????????????????? | | ######+##???# ##########????????????????????? | | #???# #?????????????????????????????? | | "S ##### #?????????????????????????????? | | """ # #?????????????????????????????? | | "" # #?????????????????????????????? | | + +?????????????????????????????? | | """ # """ #?????????????????????????????? | | """ # """ #?????????????????????????????? | | """ # """ #?????????????????????????????? | +----------------------------------------------------+ Best States ------------- Heat Dissipation 28 Energy Generation 10 Energy Capacity 125 Matter Stores 300 Matter Capacity 300 Sight Range 16 Terrain Scan Density 10 Resistance: KI 20 Resistance: TH 20 Resistance: EX 20 Resistance: EM 20 Resistance: I 20 Resistance: S 20 Resistance: P 20 Evasion (%) 50 Offensive Hacking 10 Item Schematics ----------------- None Robot Schematics ------------------ None Fabricated ------------ Nothing Alien Tech Used ----------------- None Achievements -------------- None Challenges ------------ None Game ------ Seed SensorPowerBuckler Manual? 0 Play Time 00:08:29 Cumulative 179.5 hours Start 2021.08.06 @ 16:03:21 End 2021.08.06 @ 16:09:47 Sessions 1 Manual Loads 0 Difficulty Adventurer Special Mode None Game No. 208 Rogue 106 Adventurer 56 Explorer 46 Win Type - Total 7 Types 6/0/1/0/0/0/0/0/0 Lore% 32 Gallery% 66 Achievement% 53 Wizard Run 0 Options --------- ASCII 0 Keyboard 0 Movement Mouse Keybinds 0 Fullscreen 1 Font 12/Smallcaps Map View 83x54 Tactical HUD 1 Map Filters NONE Filters NONE Steam 1 RUN: 912a67fc-d6fa-4a7f-89a3-9247608df3bd